lending/lending_fUSD_20251218
["ID","MTS","AMOUNT","RATE_DAILY","PERIOD"]
[399025292,1766075349556,-500.0,0.00041568,120]
[399025293,1766075349635,-500.0,0.00041568,120]
[399025294,1766075349713,-500.0,0.00041568,120]
[399025295,1766075349790,-500.0,0.00041568,120]
[399025296,1766075349866,-500.0,0.00041568,120]
[399025297,1766075349942,-500.0,0.00041568,120]
[399025298,1766075350019,-500.0,0.00041568,120]
[399025299,1766075350096,-500.0,0.00041568,120]
[399025300,1766075350177,-500.0,0.00041568,120]
[399025301,1766075350256,-964.0,0.00041568,120]
[399025302,1766075350334,-500.0,0.00041568,120]
[399025303,1766075350411,-500.0,0.00041568,120]
[399025304,1766075350487,-500.0,0.00041568,120]
[399025305,1766075350565,-500.0,0.00041568,120]
[399025306,1766075350642,-500.0,0.00041568,120]
[399025307,1766075350720,-500.0,0.00041568,120]
[399025308,1766075350794,-500.0,0.00041568,120]
[399025309,1766075350873,-500.0,0.00041568,120]
[399025310,1766075350950,-500.0,0.00041568,120]
[399025311,1766075351029,-500.0,0.00041568,120]
[399025312,1766075351108,-500.0,0.00041568,120]
[399025313,1766075351190,-500.0,0.00041568,120]
[399025314,1766075351270,-500.0,0.00041568,120]
[399025315,1766075351355,-500.0,0.00041568,120]
[399025316,1766075351444,-500.0,0.00041568,120]
[399025317,1766075351529,-500.0,0.00041568,120]
[399025318,1766075351615,-500.0,0.00041568,120]
[399025319,1766075351697,-500.0,0.00041568,120]
[399025320,1766075351778,-500.0,0.00041568,120]
[399025321,1766075351858,-500.0,0.00041568,120]
[399025322,1766075351942,-500.0,0.00041799,120]
[399025323,1766075352022,-500.0,0.00041799,120]
[399025324,1766075352102,-500.0,0.00041799,120]
[399025325,1766075352187,-500.0,0.00041799,120]
[399025326,1766075352267,-500.0,0.00041799,120]
[399025327,1766075352348,-1202.5,0.00041799,120]
[399025328,1766075352429,-1202.5,0.00041799,120]
[399025329,1766075352514,-500.0,0.00041799,120]
[399025330,1766075352595,-500.0,0.00041799,120]
[399025331,1766075352680,-500.0,0.00041799,120]
[399025332,1766075352761,-500.0,0.00041799,120]
[399025333,1766075352841,-500.0,0.00041799,120]
[399025334,1766075352921,-999.0,0.00041799,120]
[399025335,1766075353003,-153.29,0.000418,30]
[399025336,1766075353091,-500.0,0.00042565,120]
[399025337,1766075353177,-219.24890943,0.00042565,120]
[399025338,1766075355091,-999.0,0.00042895,120]
[399025339,1766075355196,-999.0,0.00043991,120]
[399025340,1766075355286,-999.0,0.00045087,120]
[399025341,1766075355375,-999.0,0.00046183,120]
[399025342,1766075355464,-999.0,0.00047279,120]
[399025343,1766075355554,-1348.1,0.00047585,120]
[399025344,1766075355638,-999.0,0.00048375,120]
[399025345,1766075355719,-999.0,0.0004947,120]
[399025346,1766075355805,-261.39430831,0.00049999,31]
[399025347,1766075355888,-222.60283454,0.00049999,31]
[399025348,1766075355978,-500.0,0.00049999,120]
[399025349,1766075356069,-497.28613079,0.00049999,120]
[399025350,1766075356157,-150.0,0.0005,40]
[399025351,1766075356242,-999.0,0.00050566,120]
[399025352,1766075356328,-150.0,0.00051,40]
[399025353,1766075356417,-999.0,0.00051662,120]
[399025354,1766075356503,-1000.0,0.00051999,30]
[399025355,1766075356588,-164.65,0.00052,40]
[399025356,1766075356677,-999.0,0.00052758,120]
[399025357,1766075356760,-1000.0,0.00053679,30]
[399025358,1766075356847,-999.0,0.00053854,120]
[399025359,1766075356931,-1000.0,0.00053885,30]
[399025360,1766075357016,-1000.0,0.00053999,30]
[399025361,1766075357107,-1000.0,0.00053999,30]
[399025362,1766075357190,-70101.37806692,0.00054,30]
[399025363,1766075357271,-240854.25071539,0.00054,30]
[399025364,1766075357352,-6449.62312896,0.00054,120]
[399025365,1766075357437,-1342.80419835,0.00054,120]
[399025366,1766075357516,-152.0,0.00054,120]
[399025367,1766075357597,-500.0,0.00054,120]
[399025368,1766075357678,-234.0,0.00054,75]
[399025369,1766075357757,-960.0,0.00054,120]
[399025370,1766075357851,-6558.10894271,0.00054,120]
[399025371,1766075357931,-10000.0,0.00054247,120]
[399025372,1766075358012,-168.0,0.000543,120]
[399025373,1766075358097,-2000.0,0.0005444,72]
[399025374,1766075358182,-1000.0,0.00054443,120]
[399025375,1766075358266,-1533.89,0.0005449,120]
[399025376,1766075358350,-152.0,0.000545,120]
[399025377,1766075358430,-196.241,0.00054521,120]
[399025378,1766075358511,-50000.0,0.0005466,60]
[399025379,1766075358592,-50000.0,0.0005466,30]
[399025380,1766075358672,-51332.643525,0.0005466,60]
[399025381,1766075358751,-1000.0,0.00054794,120]
[399025382,1766075358830,-1000.0,0.00054794,120]
[399025383,1766075358911,-1000.0,0.00054794,120]
[399025384,1766075358994,-1000.0,0.00054794,120]
[399025385,1766075359077,-1000.0,0.00054794,120]
[399025386,1766075359159,-1000.0,0.00054794,120]
[399025387,1766075359240,-1000.0,0.00054794,120]
[399025388,1766075360940,-1000.0,0.00054794,120]
[399025389,1766075361042,-1000.0,0.00054794,120]
[399025390,1766075361119,-1000.0,0.00054794,120]
[399025391,1766075361196,-1000.0,0.00054794,120]
[399025392,1766075361273,-1000.0,0.00054794,120]
[399025393,1766075361349,-1000.0,0.00054794,120]
[399025394,1766075361428,-1000.0,0.00054794,120]
[399025395,1766075361519,-1000.0,0.00054794,120]
[399025396,1766075361599,-1000.0,0.00054794,120]
[399025397,1766075361676,-1000.0,0.00054794,120]
[399025398,1766075361755,-1000.0,0.00054794,120]
[399025399,1766075361837,-779.75235918,0.00054794,120]
[399025400,1766075361920,-2383.60739568,0.000548,120]
[399025401,1766075361999,-168.0,0.000548,120]
[399025402,1766075362078,-24982.14360849,0.000548,120]
[399025403,1766075362156,-15904.0,0.0005483,120]
[399025404,1766075362234,-186.09149498,0.000549,120]
[399025405,1766075362310,-518.91367116,0.0005495,120]
[399025406,1766075362389,-999.0,0.0005495,120]
[399025407,1766075362467,-247.19541823,0.0005499,120]
[399025408,1766075362550,-50000.0,0.00055,55]
[399025409,1766075362628,-1193.80184638,0.00055,120]
[399025410,1766075362705,-417.80637465,0.00055,120]
[399025411,1766075362779,-1225.48806476,0.00055,120]
[399025412,1766075362859,-523.64067573,0.00055,30]
[399025413,1766075362937,-214.83369854,0.00055,120]
[399025414,1766075363014,-500.0,0.00055,30]
[399025415,1766075363094,-160.39157691,0.00055,120]
[399025416,1766075363177,-7918.0,0.00055,120]
[399025417,1766075363258,-300.0,0.00055,120]
[399025418,1766075363342,-5000.0,0.00055,120]
[399025419,1766075363426,-51338.62417,0.00055,60]
[399025420,1766075363513,-150.00883667,0.00055,120]
[399025421,1766075363597,-150.0,0.00055,90]
[399025422,1766075363677,-100000.000997,0.00055,30]
[399025423,1766075363755,-10000.0,0.00055,120]
[399025424,1766075363836,-9860.0,0.00055,120]
[399025425,1766075363916,-1808.18311027,0.00055,120]
[399025426,1766075363996,-2061.61,0.00055,30]
[399025427,1766075364076,-390.77,0.00055,120]
[399025428,1766075364161,-1172.93,0.00055,120]
[399025429,1766075364247,-152.0,0.00055,120]
[399025430,1766075364328,-500.0,0.00055,120]
[399025431,1766075364408,-276.07578,0.00055,100]
[399025432,1766075364490,-1314.12801149,0.00055,120]
[399025433,1766075364570,-168.0,0.000553,120]
[399025434,1766075364647,-15052.0,0.00055478,120]
[399025435,1766075364728,-3101471.96184984,0.000555,120]
[399025436,1766075376981,-801.04,0.00041095,120]
[399025437,1766075377066,-277.111833,0.000415,120]
[399025438,1766075377149,-5000.0,0.000417,120]
[399025439,1766075377237,-1000.0,0.00041999,30]
[399025440,1766075379529,-1000.0,0.00042736,30]
[399025441,1766075379611,-1000.0,0.00042736,30]
[399025442,1766075379696,-1000.0,0.00042736,30]
[399025443,1766075379783,-1000.0,0.00042736,30]
[399025444,1766075379862,-1000.0,0.00042736,30]
[399025445,1766075379940,-1000.0,0.00042736,30]
[399025446,1766075380020,-1000.0,0.00043999,30]
[399025447,1766075380097,-1000.0,0.00044999,30]
[399025448,1766075380177,-1000.0,0.00044999,30]
[399025449,1766075380258,-1000.0,0.00044999,30]
[399025450,1766075380344,-1000.0,0.00048999,30]
[399025451,1766075380427,-1000.0,0.00049998,30]
[399025452,1766075380527,-200.0,0.00049999,120]
[399025453,1766075380610,-1000.0,0.00049999,30]
[399025454,1766075380693,-1000.0,0.00049999,30]
[399025455,1766075380773,-1000.0,0.00050876,30]
[399025456,1766075380851,-1000.0,0.00050999,30]
[399025457,1766075380931,-50510.82388426,0.00051,120]
[399025458,1766075381016,-1000.0,0.00051979,30]
[399025459,1766075381102,-1898528.03815016,0.000555,120]
[399025460,1766075381189,-2026682.98613258,0.000555,120]
[399025461,1766075386976,-2973317.01386742,0.000555,120]
[399025462,1766075387065,-1026682.98613258,0.000555,120]
[399025463,1766075395551,-10008.64217396,0.00047,30]
[399025464,1766075395640,-3973317.01386742,0.000555,120]
[399025465,1766075395722,-2016674.34395862,0.000555,120]
[399025466,1766075398941,342.59695128,0.00016899,2]
[399025467,1766075402165,-2983325.65604138,0.000555,120]
[399025468,1766075402251,-3016674.34395862,0.000555,120]
[399025469,1766075402325,1200.0,0.00016998,2]
[399025470,1766075402359,169.0,0.00016998,2]
[399025471,1766075403773,300.0,0.00016998,2]
[399025472,1766075405127,-1065.51,0.00041095,120]
[399025473,1766075407369,-45000.00000001,0.00055,120]
[399025474,1766075407489,-1983325.65604138,0.000555,120]
[399025475,1766075407582,-152.0,0.000555,120]
[399025476,1766075407668,-513.44044733,0.000556,120]
[399025477,1766075407751,-168.0,0.000558,120]
[399025478,1766075407833,-24982.14360849,0.000558,120]
[399025479,1766075407922,-27940.97396994,0.00055947,120]
[399025480,1766075408003,-1000.0,0.00055999,120]
[399025481,1766075408087,-300.0,0.00056,120]
[399025482,1766075408173,-200.0,0.00056,120]
[399025483,1766075408261,-152.0,0.00056,120]
[399025484,1766075408348,-500.0,0.00056,120]
[399025485,1766075408442,-1342.80419835,0.00056,120]
[399025486,1766075408541,-999.0,0.00056046,120]
[399025487,1766075408627,-168.0,0.000563,120]
[399025488,1766075408709,-2967.7245886,0.00056332,120]
[399025489,1766075408793,-15052.0,0.00056478,120]
[399025490,1766075408876,-1136.0,0.000566,120]
[399025491,1766075408959,-258.7583531,0.000566,120]
[399025492,1766075409043,-152.0,0.000566,120]
[399025493,1766075409128,-446.86721136,0.000568,120]
[399025494,1766075409212,-168.0,0.000568,120]
[399025495,1766075409307,-24982.14360849,0.000568,120]
[399025496,1766075409390,-15904.0,0.0005683,120]
[399025497,1766075410085,-2032.0,0.0005686,72]
[399025498,1766075410183,-2067.80072038,0.00056923,120]
[399025499,1766075410269,-300.0,0.00057,120]
[399025500,1766075410356,-500.0,0.00057,120]
[399025501,1766075410453,-152.0,0.000571,120]
[399025502,1766075410538,-19403.0,0.00057139,120]
[399025503,1766075410621,-999.0,0.00057142,120]
[399025504,1766075410701,-168.0,0.000573,120]
[399025505,1766075410782,-1000.0,0.0005745,120]
[399025506,1766075410865,-15052.0,0.00057478,120]
[399025507,1766075410946,-10000.0,0.00057534,120]
[399025508,1766075411033,-152.0,0.000576,120]
[399025509,1766075411115,-168.0,0.000578,120]
[399025510,1766075411197,-24982.14360849,0.000578,120]
[399025511,1766075411280,-15904.0,0.0005783,120]
[399025512,1766075411363,-2032.59414348,0.0005786,72]
[399025513,1766075411448,-1000.0,0.00057943,120]
[399025514,1766075411536,-530.75,0.00058,120]
[399025515,1766075411618,-300.0,0.00058,120]
[399025516,1766075411704,-200.0,0.00058,120]
[399025517,1766075411784,-1363.59149127,0.00058,120]
[399025518,1766075411863,-500.0,0.00058,120]
[399025519,1766075411946,-152.0,0.000581,120]
[399025520,1766075412029,-999.0,0.00058238,120]
[399025521,1766075412115,-168.0,0.000583,120]
[399025522,1766075412199,-15052.0,0.00058478,120]
[399025523,1766075412285,-152.0,0.000587,120]
[399025524,1766075412381,-168.0,0.000588,120]
[399025525,1766075412475,-24982.14260849,0.000588,120]
[399025526,1766075412570,-15904.0,0.0005883,120]
[399025527,1766075412654,-86425.67337268,0.00059,120]
[399025528,1766075412735,-300.0,0.00059,120]
[399025529,1766075412815,-500.0,0.00059,120]
[399025530,1766075412900,-234.0,0.00059,96]
[399025531,1766075412999,-15052.0,0.00059178,120]
[399025532,1766075413097,-152.0,0.000592,120]
[399025533,1766075413190,-168.0,0.000593,120]
[399025534,1766075413276,-999.0,0.00059333,120]
[399025535,1766075413363,-15052.0,0.00059478,120]
[399025536,1766075413442,-152.0,0.000597,120]
[399025537,1766075413524,-2000.0,0.0005978,65]
[399025538,1766075413607,-168.0,0.000598,120]
[399025539,1766075413688,-15904.0,0.0005983,120]
[399025540,1766075413769,-1998.76077192,0.00059846,120]
[399025541,1766075413849,-1252.82573058,0.000599,120]
[399025542,1766075413927,-114957.39741948,0.000599,120]
[399025543,1766075414004,-15907.67133966,0.0005993,120]
[399025544,1766075414083,-1000.0,0.00059999,120]
[399025545,1766075414164,-50000.0,0.0006,60]
[399025546,1766075414247,-262.27574884,0.0006,120]
[399025547,1766075414326,-1176.35268874,0.0006,30]
[399025548,1766075414404,-486.83366899,0.0006,120]
[399025549,1766075414485,-717.0,0.0006,120]
[399025550,1766075414568,-700.0,0.0006,120]
[399025551,1766075414645,-975.25,0.0006,120]
[399025552,1766075414724,-200.3903594,0.0006,30]
[399025553,1766075414802,-300.0,0.0006,120]
[399025554,1766075414879,-200.0,0.0006,120]
[399025555,1766075414958,-164.91012219,0.0006,120]
[399025556,1766075415038,-1540.68707,0.0006,120]
[399025557,1766075415118,-1000.0,0.0006,120]
[399025558,1766075415200,-1053.94641683,0.0006,120]
[399025559,1766075415284,-923.06320237,0.0006,120]
[399025560,1766075415362,-448.0,0.0006,120]
[399025561,1766075415443,-733.38987543,0.0006,120]
[399025562,1766075415527,-20000.0,0.0006,120]
[399025563,1766075415609,-150.0,0.0006,90]
[399025564,1766075415695,-350.32894471,0.0006,120]
[399025565,1766075415779,-2268.0,0.0006,120]
[399025566,1766075415862,-940.76938404,0.0006,120]
[399025567,1766075415944,-928.59552474,0.0006,120]
[399025568,1766075416025,-579.74841662,0.0006,120]
[399025569,1766075416107,-390.77,0.0006,120]
[399025570,1766075416189,-1172.93,0.0006,120]
[399025571,1766075416272,-750.0,0.0006,120]
[399025572,1766075416355,-5034.89613879,0.0006,30]
[399025573,1766075416439,-15052.0,0.00060178,120]
[399025574,1766075416522,-152.0,0.000602,120]
[399025575,1766075416604,-168.0,0.000603,120]
[399025576,1766075416687,-999.0,0.00060429,120]
[399025577,1766075416769,-168.0,0.000607,120]
[399025578,1766075416851,-22861.0,0.00060732,120]
[399025579,1766075416930,-152.0,0.000608,120]
[399025580,1766075417009,-2067.80072038,0.00060986,120]
[399025581,1766075417089,-300.0,0.00061,120]
[399025582,1766075417171,-15052.0,0.00061178,120]
[399025583,1766075417254,-168.0,0.000612,120]
[399025584,1766075417337,-20098.0,0.00061278,120]
[399025585,1766075417418,-152.0,0.000613,120]
[399025586,1766075417501,-999.0,0.00061525,120]
[399025587,1766075417582,-168.0,0.000617,120]
[399025588,1766075417662,-22861.0,0.00061732,120]
[399025589,1766075417742,-152.0,0.000618,120]
[399025590,1766075417820,-20417.73291163,0.000618,120]
[399025591,1766075417898,-300.0,0.00062,120]
[399025592,1766075418287,-200.0,0.00062,120]
[399025593,1766075418366,-15052.0,0.00062178,120]
[399025594,1766075418445,-168.0,0.000622,120]
[399025595,1766075418525,-20098.0,0.00062278,120]
[399025596,1766075418606,-152.0,0.000623,120]
[399025597,1766075418688,-502.96567494,0.00062325,45]
[399025598,1766075418769,-2000.0,0.0006249,68]
[399025599,1766075418857,-999.0,0.00062621,120]
[399025600,1766075418942,-168.0,0.000627,120]
[399025601,1766075419025,-22861.0,0.00062732,120]
[399025602,1766075419108,-2574.17418904,0.000628,120]
[399025603,1766075419189,-152.0,0.000629,120]
[399025604,1766075419274,-1121.0,0.00063,120]
[399025605,1766075420078,23952.09,0.00054,120]
[399025606,1766075420171,500.0,0.000418,120]
[399025607,1766075420293,500.0,0.000418,120]
[399025608,1766075420378,500.0,0.000418,120]
[399025609,1766075420460,500.0,0.000418,120]
[399025610,1766075420546,500.0,0.000418,120]
[399025611,1766075420632,500.0,0.000418,120]
[399025612,1766075420719,500.0,0.000418,120]
[399025613,1766075420809,500.0,0.000418,120]
[399025614,1766075420896,500.0,0.000418,120]
[399025615,1766075420984,500.0,0.000418,120]
[399025616,1766075421081,500.0,0.000418,120]
[399025617,1766075421176,500.0,0.000418,120]
[399025618,1766075421266,500.0,0.000418,120]
[399025619,1766075421368,500.0,0.000418,120]
[399025620,1766075421405,591.23,0.0001699,2]
[399025621,1766075421499,500.0,0.000418,120]
[399025622,1766075421537,591.23,0.0001699,2]
[399025623,1766075421626,500.0,0.000418,120]
[399025624,1766075421710,800.0,0.00043836,31]
[399025625,1766075421794,800.0,0.00049315,33]
[399025626,1766075421875,500.0,0.000418,120]
[399025627,1766075421985,800.0,0.00054795,35]
[399025628,1766075422070,500.0,0.000418,120]
[399025629,1766075422150,800.0,0.00060274,37]
[399025630,1766075422247,500.0,0.000418,120]
[399025631,1766075422680,500.0,0.000418,120]
[399025632,1766075422770,625.5,0.00041095,120]
[399025633,1766075422853,500.0,0.000418,120]
[399025634,1766075422941,625.5,0.00041095,120]
[399025635,1766075423030,2000.0,0.00059999,30]
[399025636,1766075423121,2000.0,0.00059999,30]
[399025637,1766075423211,625.5,0.00041095,120]
[399025638,1766075423298,500.0,0.000418,120]
[399025639,1766075423388,2000.0,0.00059999,30]
[399025640,1766075423483,2000.0,0.00059999,30]
[399025641,1766075423578,625.5,0.00041095,120]
[399025642,1766075423667,500.0,0.000418,120]
[399025643,1766075423760,625.5,0.00041095,120]
[399025644,1766075423878,500.0,0.000418,120]
[399025645,1766075423983,625.5,0.00041095,120]
[399025646,1766075424073,2000.0,0.00059999,30]
[399025647,1766075424163,2000.0,0.00059999,30]
[399025648,1766075424254,500.0,0.000418,120]
[399025661,1766075432142,-420.26169723,0.00016999,2]
[399025662,1766075432154,-79.73830277,0.00016999,2]
[399025663,1766075432163,-245.26180136,0.00016999,2]
[399025664,1766075432175,-254.73819864,0.00016999,2]
[399025665,1766075432184,-391.61476867,0.00016999,2]
[399025666,1766075432195,-500.0,0.00016999,2]
[399025667,1766075432205,-500.0,0.00016999,2]
[399025668,1766075432215,-500.0,0.00016999,2]
[399025669,1766075432224,-577.12122136,0.00016999,2]
[399025670,1766075432234,-576.45817314,0.00016999,2]
[399025671,1766075432244,-500.0,0.00016999,2]
[399025672,1766075432253,-352.54877483,0.00016999,2]
[399025673,1766075432263,-500.0,0.00016999,2]
[399025674,1766075432273,-500.0,0.00016999,2]
[399025675,1766075432282,-500.0,0.00016999,2]
[399025676,1766075432291,-500.0,0.00016999,2]
[399025677,1766075432301,-500.0,0.00016999,2]
[399025678,1766075432310,-503.42551085,0.00016999,2]
[399025679,1766075432320,-475.57517711,0.00016999,2]
[399025680,1766075432329,-500.0,0.00016999,2]
[399025681,1766075432338,-500.0,0.00016999,2]
[399025682,1766075432347,-500.0,0.00016999,2]
[399025683,1766075432356,-339.54310932,0.00016999,2]
[399025684,1766075432369,-160.45689068,0.00016999,2]
[399025685,1766075432378,-500.0,0.00016999,2]
[399025686,1766075432388,-500.0,0.00016999,2]
[399025687,1766075432398,-500.0,0.00016999,2]
[399025688,1766075432408,-500.0,0.00016999,2]
[399025689,1766075432417,-500.0,0.00016999,2]
[399025690,1766075432427,-500.0,0.00016999,2]
[399025691,1766075432437,-500.0,0.00016999,2]
[399025692,1766075432446,-500.0,0.00016999,2]
[399025693,1766075432456,-500.0,0.00016999,2]
[399025694,1766075432466,-500.0,0.00016999,2]
[399025695,1766075432476,-500.0,0.00016999,2]
[399025696,1766075432485,-500.0,0.00016999,2]
[399025697,1766075432495,-500.0,0.00016999,2]
[399025698,1766075432507,-500.0,0.00016999,2]
[399025699,1766075432516,-300.0,0.00016999,2]
[399025700,1766075432525,-8437.18234233,0.00017,2]
[399025701,1766075432536,-627.03415411,0.00017,2]
[399025702,1766075432568,-994.12251902,0.00017,2]
[399025703,1766075432581,-1570.57116541,0.00017,2]
[399025704,1766075432593,-628.42,0.00017,2]
[399025705,1766075432605,-29537.51188811,0.00017,2]
[399025706,1766075432620,-326.03172292,0.00017,2]
[399025707,1766075432635,-1166.96670514,0.00017,2]
[399025708,1766075432647,-339.71408908,0.00017,2]
[399025709,1766075432659,-2775.90264677,0.00017,2]
[399025710,1766075432671,-16276.87627361,0.00017,2]
[399025711,1766075432684,-4020.76159889,0.00017,2]
[399025712,1766075432697,-2258.15635123,0.00017,2]
[399025713,1766075432708,-2950.47246119,0.00017,2]
[399025714,1766075432719,-12592.26839132,0.00017,2]
[399025716,1766075437874,-632.13150075,0.00017,2]
[399025717,1766075437913,-664.98932389,0.00017,2]
[399025718,1766075437924,-3959.999999,0.00017,2]
[399025719,1766075438107,-430.74689844,0.00017,2]
[399025720,1766075438119,-92082.70056111,0.00017,2]
[399025739,1766075439934,-699.99999955,0.00017,2]
[399025740,1766075439947,-3488.00000003,0.00017,2]
[399025741,1766075440200,-2328.46288558,0.00017,2]
[399025742,1766075440221,-361.20249994,0.00017,2]
[399025743,1766075440234,-7927.88365874,0.00017,2]
[399025744,1766075440246,-5481.18,0.00017,2]
[399025745,1766075440258,-8959.67874395,0.00017,2]
[399025746,1766075440270,-596.86825074,0.00017,2]
[399025749,1766075440306,-278.673149,0.00017,2]
[399025839,1766075442869,-22108.0,0.00017,2]
[399025841,1766075442910,-379.46485639,0.00017,2]
[399025842,1766075443190,-278507.18539583,0.00017,2]
[399025890,1766075447536,-625.5,0.00041095,120]
[399025891,1766075447620,-625.5,0.00041095,120]
[399025892,1766075448115,-500.0,0.00041095,120]
[399025893,1766075448196,-542.35,0.00041095,120]
[399025894,1766075448277,-625.5,0.00041097,120]
[399025895,1766075448359,-625.5,0.00041799,120]
[399025896,1766075448437,-625.5,0.00041799,120]
[399025897,1766075448516,-625.5,0.00041799,120]
[399025898,1766075448591,-625.5,0.00041799,120]
[399025899,1766075448665,-625.5,0.00041799,120]
[399025900,1766075448743,-500.0,0.000418,120]
[399025901,1766075448821,-500.0,0.000418,120]
[399025902,1766075448910,-500.0,0.000418,120]
[399025903,1766075449003,-500.0,0.000418,120]
[399025904,1766075449083,-500.0,0.000418,120]
[399025905,1766075449162,-500.0,0.000418,120]
[399025906,1766075449242,-500.0,0.000418,120]
[399025907,1766075449320,-500.0,0.000418,120]
[399025908,1766075449396,-500.0,0.000418,120]
[399025909,1766075449474,-500.0,0.000418,120]
[399025910,1766075449553,-500.0,0.000418,120]
[399025911,1766075449632,-500.0,0.000418,120]
[399025912,1766075449714,-500.0,0.000418,120]
[399025913,1766075449790,-500.0,0.000418,120]
[399025914,1766075449863,-500.0,0.000418,120]
[399025915,1766075449938,-500.0,0.000418,120]
[399025916,1766075450014,-500.0,0.000418,120]
[399025917,1766075450092,-500.0,0.000418,120]
[399025918,1766075450168,-500.0,0.000418,120]
[399025919,1766075450246,-500.0,0.000418,120]
[399025920,1766075450322,-500.0,0.000418,120]
[399025921,1766075450398,-500.0,0.000418,120]
[399025922,1766075450473,-500.0,0.000418,120]
[399025923,1766075450553,-500.0,0.000418,120]
[399025924,1766075450632,-500.0,0.000418,120]
[399025925,1766075450717,-500.0,0.000418,120]
[399025926,1766075450796,-500.0,0.000418,120]
[399025927,1766075450872,-500.0,0.000418,120]
[399025928,1766075450947,-500.0,0.000418,120]
[399025929,1766075451024,-500.0,0.000418,120]
[399025930,1766075451105,-500.0,0.000418,120]
[399025931,1766075451190,-500.0,0.000418,120]
[399025932,1766075451271,-500.0,0.000418,120]
[399025933,1766075451347,-500.0,0.000418,120]
[399025934,1766075451427,-500.0,0.000418,120]
[399025935,1766075451509,-500.0,0.000418,120]
[399025936,1766075451587,-500.0,0.000418,120]
[399025937,1766075451665,-500.0,0.000418,120]
[399025938,1766075451743,-500.0,0.000418,120]
[399025939,1766075451822,-500.0,0.000418,120]
[399025940,1766075451898,-500.0,0.000418,120]
[399025941,1766075451973,-500.0,0.000418,120]
[399025942,1766075452050,-500.0,0.000418,120]
[399025943,1766075452129,-500.0,0.000418,120]
[399025944,1766075452209,-500.0,0.000418,120]
[399025945,1766075452302,-500.0,0.000418,120]
[399025946,1766075452381,-500.0,0.000418,120]
[399025947,1766075452463,-500.0,0.000418,120]
[399025948,1766075452545,-500.0,0.000418,120]
[399025949,1766075452626,-500.0,0.000418,120]
[399025950,1766075452704,-500.0,0.000418,120]
[399025951,1766075452780,-500.0,0.000418,120]
[399025952,1766075452860,-500.0,0.000418,120]
[399025953,1766075452939,-500.0,0.000418,120]
[399025954,1766075453018,-500.0,0.000418,120]
[399025955,1766075453113,-500.0,0.000418,120]
[399025956,1766075453215,-500.0,0.000418,120]
[399025957,1766075453300,-500.0,0.000418,120]
[399025958,1766075453380,-500.0,0.000418,120]
[399025959,1766075453463,-500.0,0.000418,120]
[399025960,1766075453544,-500.0,0.000418,120]
[399025961,1766075453622,-500.0,0.000418,120]